[Event "CZE-ch Youth G10-G12-G14 2022"]
[Site "Luhacovice"]
[Date "2022.03.14"]
[Round "3.16"]
[White "Kubatova Ema"]
[Black "Bartova Hana"]
[Result "1-0"]
[ECO "C45"]
[WhiteElo "1183"]
[BlackElo "1000"]
[Annotator "NA"]
[PlyCount "97"]
[EventDate "2022.03.12"]
[EventType "swiss"]
[EventCountry "CZE"]
[SourceTitle "playchess.com"]
[Source "ChessBase"]
[SourceQuality "1"]
[TimeControl "40/5400+30:1800+30"]

1. e4 {[%emt 0:00:17]} e5 {[%emt 0:00:09]} 2. Nf3 {[%emt 0:00:13]} Nc6 {[%emt 0:00:08]} 3. d4 {[%emt 0:00:17]} exd4 {[%emt 0:00:33]} 4. Nxd4 {[%emt 0:00:33]} Qh4 {[%emt 0:00:55]} 5. Nc3 {[%emt 0:05:33]} Bb4 {[%emt 0:02:07]} 6. Ndb5 {[%emt 0:12:33]} Qxe4+ {[%emt 0:06:49]} 7. Be2 {[%emt 0:04:48]} Qe5 {[%emt 0:06:36]} 8. f4 {[%emt 0:10:47]} Bxc3+ {[%emt 0:03:40]} 9. bxc3 {[%emt 0:00:36]} Qc5 {[%emt 0:08:41]} 10. Nxc7+ {[%emt 0:03:39]} Kd8 {[%emt 0:00:35]} 11. Nxa8 {[%emt 0:01:40]} Qxc3+ {[%emt 0:01:38]} 12. Bd2 {[%emt 0:00:35]} Qc5 {[%emt 0:00:50]} 13. Qb1 {[%emt 0:11:28]} Nf6 {[%emt 0:05:46]} 14. Qb5 {[%emt 0:05:32]} Qxc2 {[%emt 0:02:39]} 15. Qc4 {[%emt 0:07:23]} Qxc4 {[%emt 0:05:04]} 16. Bxc4 {[%emt 0:00:28]} Re8+ {[%emt 0:00:14]} 17. Kd1 {[%emt 0:01:25]} Re7 {[%emt 0:00:45]} 18. Re1 {[%emt 0:00:32]} Ne8 {[%emt 0:01:19]} 19. Rxe7 {[%emt 0:01:39]} Kxe7 {[%emt 0:00:52]} 20. Kc2 {[%emt 0:01:01]} b6 {[%emt 0:00:48]} 21. Re1+ {[%emt 0:01:15]} Kf8 {[%emt 0:01:03]} 22. Bd3 {[%emt 0:01:48]} h6 {[%emt 0:02:10]} 23. Be4 {[%emt 0:03:07]} Bb7 {[%emt 0:00:53]} 24. Bxc6 {[%emt 0:00:39]} Bxc6 {[%emt 0:00:23]} 25. Bb4+ {[%emt 0:00:42]} d6 {[%emt 0:01:02]} 26. Nc7 {[%emt 0:01:01]} Nxc7 {[%emt 0:01:40]} 27. Bxd6+ {[%emt 0:00:13]} Kg8 {[%emt 0:00:14]} 28. Bxc7 {[%emt 0:00:18]} Bxg2 {[%emt 0:00:39]} 29. Re7 {[%emt 0:01:14]} b5 {[%emt 0:01:16]} 30. Bd8 {[%emt 0:01:30]} Kf8 {[%emt 0:00:40]} 31. Rxa7 {[%emt 0:00:19]} Ke8 {[%emt 0:00:27]} 32. Ba5 {[%emt 0:00:37]} g6 {[%emt 0:00:43]} 33. Kc3 {[%emt 0:00:41]} Bf1 {[%emt 0:00:29]} 34. Kb4 {[%emt 0:00:17]} h5 {[%emt 0:00:30]} 35. a4 {[%emt 0:00:23]} bxa4 {[%emt 0:01:02]} 36. Kxa4 {[%emt 0:00:08]} h4 {[%emt 0:00:33]} 37. Kb4 {[%emt 0:00:32]} h3 {[%emt 0:00:15]} 38. Kc3 {[%emt 0:00:33]} Kf8 {[%emt 0:00:40]} 39. Kd2 {[%emt 0:00:20]} Bb5 {[%emt 0:00:23]} 40. Bc3 {[%emt 0:00:39]} Bc6 {[%emt 0:00:19]} 41. Ke3 {[%emt 0:30:26]} Bd5 {[%emt 0:30:27]} 42. Rc7 {[%emt 0:01:06]} Be6 {[%emt 0:00:21]} 43. Ra7 {[%emt 0:00:30]} Bd5 {[%emt 0:00:12]} 44. Kd4 {[%emt 0:00:49]} Bf3 {[%emt 0:00:37]} 45. Ke3 {[%emt 0:00:41]} Bd5 {[%emt 0:00:18]} 46. Kf2 {[%emt 0:00:12]} Ke8 {[%emt 0:00:27]} 47. Bf6 {[%emt 0:00:33]} Kf8 {[%emt 0:00:34]} 48. Kg3 {[%emt 0:00:23]} Kg8 {[%emt 0:00:40]} 49. Kxh3 {[%emt 0:00:18]} 1-0

[Event "CZE-ch Youth G10-G12-G14 2022"]
[Site "Luhacovice"]
[Date "2022.03.14"]
[Round "3.17"]
[White "Horkova, Tereza"]
[Black "Havelkova Kamila"]
[Result "1-0"]
[ECO "C58"]
[WhiteElo "1375"]
[BlackElo "1092"]
[Annotator "NA"]
[PlyCount "49"]
[EventDate "2022.03.12"]
[EventType "swiss"]
[EventCountry "CZE"]
[SourceTitle "playchess.com"]
[Source "ChessBase"]
[SourceQuality "1"]
[TimeControl "40/5400+30:1800+30"]

1. e4 {[%emt 0:00:03]} e5 {[%emt 0:00:27]} 2. Nf3 {[%emt 0:00:07]} Nc6 {[%emt 0:00:43]} 3. Bc4 {[%emt 0:00:09]} Nf6 {[%emt 0:00:26]} 4. Ng5 {[%emt 0:00:16]} d5 {[%emt 0:01:00]} 5. exd5 {[%emt 0:00:17]} Na5 {[%emt 0:00:35]} 6. Bb5+ {[%emt 0:00:12]} c6 {[%emt 0:00:28]} 7. dxc6 {[%emt 0:00:07]} bxc6 {[%emt 0:00:20]} 8. Bd3 {[%emt 0:00:40]} Nd5 {[%emt 0:01:11]} 9. Nf3 {[%emt 0:01:27]} Bd6 {[%emt 0:01:01]} 10. O-O {[%emt 0:05:04]} O-O {[%emt 0:00:57]} 11. h3 {[%emt 0:09:50]} f5 {[%emt 0:00:50]} 12. Ne1 {[%emt 0:08:42]} Be6 {[%emt 0:02:53]} 13. Nc3 {[%emt 0:03:31]} Qc7 {[%emt 0:01:43]} 14. Nxd5 {[%emt 0:06:24]} cxd5 {[%emt 0:00:44]} 15. Be2 {[%emt 0:10:49]} Rad8 {[%emt 0:01:42]} 16. d3 {[%emt 0:11:49]} e4 {[%emt 0:01:39]} 17. f4 {[%emt 0:21:54]} exf3 {[%emt 0:03:11]} 18. Nxf3 {[%emt 0:01:16]} f4 {[%emt 0:04:06]} 19. Kh1 {[%emt 0:02:14]} d4 {[%emt 0:01:29]} 20. Nxd4 {[%emt 0:02:47]} Bxh3 {[%emt 0:00:57]} 21. gxh3 {[%emt 0:01:27]} f3 {[%emt 0:00:59]} 22. Bxf3 {[%emt 0:01:59]} Kh8 {[%emt 0:02:56]} 23. Bd5 {[%emt 0:01:28]} Rfe8 {[%emt 0:01:12]} 24. Ne6 {[%emt 0:03:52]} Rc8 {[%emt 0:01:53]} 25. Qf3 {[%emt 0:01:35]} 1-0

[Event "CZE-ch Youth G10-G12-G14 2022"]
[Site "Luhacovice"]
[Date "2022.03.14"]
[Round "3.18"]
[White "Kammova, Katerina"]
[Black "Mojzisova Barbora"]
[Result "1-0"]
[ECO "C44"]
[WhiteElo "1376"]
[BlackElo "1089"]
[Annotator "NA"]
[PlyCount "65"]
[EventDate "2022.03.12"]
[EventType "swiss"]
[EventCountry "CZE"]
[SourceTitle "playchess.com"]
[Source "ChessBase"]
[SourceQuality "1"]
[TimeControl "40/5400+30:1800+30"]

1. e4 {[%emt 0:00:05]} e5 {[%emt 0:00:17]} 2. d4 {[%emt 0:00:10]} exd4 {[%emt 0:00:51]} 3. Nf3 {[%emt 0:00:11]} Nc6 {[%emt 0:00:35]} 4. c3 {[%emt 0:00:05]} dxc3 {[%emt 0:00:53]} 5. Nxc3 {[%emt 0:00:14]} Bb4 {[%emt 0:01:21]} 6. Bc4 {[%emt 0:00:51]} Bxc3+ {[%emt 0:02:51]} 7. bxc3 {[%emt 0:00:15]} Nge7 {[%emt 0:01:40]} 8. Ng5 {[%emt 0:05:16]} O-O {[%emt 0:01:45]} 9. Qh5 {[%emt 0:02:47]} h6 {[%emt 0:04:30]} 10. Nxf7 {[%emt 0:01:47]} Rxf7 {[%emt 0:02:08]} 11. Bxf7+ {[%emt 0:01:11]} Kf8 {[%emt 0:03:30]} 12. Bb3 {[%emt 0:00:33]} Qe8 {[%emt 0:03:56]} 13. Qf3+ {[%emt 0:01:43]} Nf5 {[%emt 0:04:41]} 14. Qxf5+ {[%emt 0:00:38]} Ke7 {[%emt 0:04:43]} 15. O-O {[%emt 0:00:40]} Kd8 {[%emt 0:03:27]} 16. Qf7 {[%emt 0:03:50]} Qxf7 {[%emt 0:03:12]} 17. Bxf7 {[%emt 0:00:07]} d6 {[%emt 0:02:14]} 18. Bb3 {[%emt 0:02:43]} Ne5 {[%emt 0:02:09]} 19. Bb2 {[%emt 0:00:58]} Bg4 {[%emt 0:02:43]} 20. f3 {[%emt 0:01:31]} Bh5 {[%emt 0:02:37]} 21. Rfd1 {[%emt 0:00:35]} Kd7 {[%emt 0:04:38]} 22. c4 {[%emt 0:02:17]} Nc6 {[%emt 0:04:27]} 23. c5 {[%emt 0:02:24]} g5 {[%emt 0:06:00]} 24. g4 {[%emt 0:01:15]} Bg6 {[%emt 0:01:13]} 25. cxd6 {[%emt 0:00:15]} Rd8 {[%emt 0:02:22]} 26. dxc7+ {[%emt 0:00:20]} Kxc7 {[%emt 0:00:24]} 27. Rxd8 {[%emt 0:00:13]} Kxd8 {[%emt 0:00:25]} 28. h3 {[%emt 0:00:33]} h5 {[%emt 0:02:09]} 29. Bf6+ {[%emt 0:00:59]} Kd7 {[%emt 0:02:56]} 30. Rd1+ {[%emt 0:00:18]} Kc7 {[%emt 0:00:27]} 31. Bxg5 {[%emt 0:00:12]} hxg4 {[%emt 0:00:46]} 32. hxg4 {[%emt 0:00:06]} Ne5 {[%emt 0:01:13]} 33. Bf4 {[%emt 0:00:18]} 1-0

[Event "CZE-ch Youth G10-G12-G14 2022"]
[Site "Luhacovice"]
[Date "2022.03.14"]
[Round "3.19"]
[White "Krisicova Neli"]
[Black "Bouchalova, Kveta"]
[Result "1-0"]
[ECO "A01"]
[WhiteElo "1093"]
[BlackElo "1303"]
[Annotator "NA"]
[PlyCount "51"]
[EventDate "2022.03.12"]
[EventType "swiss"]
[EventCountry "CZE"]
[SourceTitle "playchess.com"]
[Source "ChessBase"]
[SourceQuality "1"]
[TimeControl "40/5400+30:1800+30"]

1. b3 {[%emt 0:00:04]} e5 {[%emt 0:00:10]} 2. Bb2 {[%emt 0:00:09]} Nc6 {[%emt 0:00:11]} 3. e3 {[%emt 0:00:39]} d5 {[%emt 0:01:30]} 4. Bb5 {[%emt 0:00:52]} Bd6 {[%emt 0:09:16]} 5. f4 {[%emt 0:02:40]} d4 {[%emt 0:19:36]} 6. Nf3 {[%emt 0:03:18]} Bg4 {[%emt 0:02:01]} 7. fxe5 {[%emt 0:03:30]} Be7 {[%emt 0:10:56]} 8. Bxd4 {[%emt 0:03:23]} Bh4+ {[%emt 0:07:39]} 9. g3 {[%emt 0:02:25]} Qd5 {[%emt 0:03:30]} 10. Bxc6+ {[%emt 0:02:38]} Qxc6 {[%emt 0:00:24]} 11. Rf1 {[%emt 0:01:27]} Be7 {[%emt 0:05:08]} 12. Nc3 {[%emt 0:07:40]} f6 {[%emt 0:03:07]} 13. Qe2 {[%emt 0:02:58]} O-O-O {[%emt 0:04:33]} 14. a4 {[%emt 0:03:47]} Nh6 {[%emt 0:03:10]} 15. Nb5 {[%emt 0:01:39]} Qxc2 {[%emt 0:04:43]} 16. Qc4 {[%emt 0:01:26]} Qxc4 {[%emt 0:00:59]} 17. bxc4 {[%emt 0:00:08]} a6 {[%emt 0:00:29]} 18. Nc3 {[%emt 0:00:38]} Nf7 {[%emt 0:02:22]} 19. Nd5 {[%emt 0:01:24]} Rhe8 {[%emt 0:02:01]} 20. Nxe7+ {[%emt 0:00:54]} Rxe7 {[%emt 0:00:49]} 21. exf6 {[%emt 0:00:17]} Ree8 {[%emt 0:02:36]} 22. fxg7 {[%emt 0:00:46]} Nh6 {[%emt 0:01:46]} 23. Bc3 {[%emt 0:04:29]} Re4 {[%emt 0:02:15]} 24. Ne5 {[%emt 0:02:00]} Rg8 {[%emt 0:05:10]} 25. Rf8+ {[%emt 0:00:27]} Rxf8 {[%emt 0:01:55]} 26. gxf8=Q# {[%emt 0:00:15]} 1-0

[Event "CZE-ch Youth G10-G12-G14 2022"]
[Site "Luhacovice"]
[Date "2022.03.14"]
[Round "3.20"]
[White "Barteckova, Nikol"]
[Black "Kubatova Beta"]
[Result "1-0"]
[ECO "B39"]
[WhiteElo "1140"]
[BlackElo "1071"]
[Annotator "NA"]
[PlyCount "209"]
[EventDate "2022.03.12"]
[EventType "swiss"]
[EventCountry "CZE"]
[SourceTitle "playchess.com"]
[Source "ChessBase"]
[SourceQuality "1"]
[TimeControl "40/5400+30:1800+30"]

1. e4 {[%emt 0:00:15]} c5 {[%emt 0:00:16]} 2. Nf3 {[%emt 0:00:21]} Nc6 {[%emt 0:00:18]} 3. d4 {[%emt 0:00:05]} cxd4 {[%emt 0:00:25]} 4. Nxd4 {[%emt 0:00:07]} g6 {[%emt 0:00:17]} 5. c4 {[%emt 0:00:11]} Bg7 {[%emt 0:00:39]} 6. Be3 {[%emt 0:01:17]} Nf6 {[%emt 0:00:56]} 7. Nc3 {[%emt 0:01:23]} Ng4 {[%emt 0:30:55]} 8. Qxg4 {[%emt 0:03:55]} Nxd4 {[%emt 0:00:15]} 9. Qd1 {[%emt 0:00:37]} Nc6 {[%emt 0:03:04]} 10. Be2 {[%emt 0:03:02]} O-O {[%emt 0:01:09]} 11. O-O {[%emt 0:00:59]} d6 {[%emt 0:00:50]} 12. Qd2 {[%emt 0:01:11]} Bd7 {[%emt 0:01:48]} 13. Rab1 {[%emt 0:05:51]} Rc8 {[%emt 0:02:51]} 14. Rfc1 {[%emt 0:10:37]} Ne5 {[%emt 0:15:46]} 15. Nd1 {[%emt 0:02:17]} Bg4 {[%emt 0:14:43]} 16. f3 {[%emt 0:00:46]} Be6 {[%emt 0:01:10]} 17. b3 {[%emt 0:01:10]} Bd7 {[%emt 0:05:50]} 18. Bh6 {[%emt 0:00:50]} a6 {[%emt 0:02:12]} 19. Bxg7 {[%emt 0:00:22]} Kxg7 {[%emt 0:00:07]} 20. a4 {[%emt 0:00:15]} Qb6+ {[%emt 0:01:47]} 21. Qe3 {[%emt 0:00:42]} Qxe3+ {[%emt 0:02:30]} 22. Nxe3 {[%emt 0:00:24]} Bc6 {[%emt 0:00:43]} 23. Rc2 {[%emt 0:03:47]} Nd7 {[%emt 0:02:08]} 24. Rd2 {[%emt 0:00:37]} Rfd8 {[%emt 0:00:52]} 25. Bd3 {[%emt 0:00:48]} Nc5 {[%emt 0:01:05]} 26. Rbb2 {[%emt 0:00:19]} Rd7 {[%emt 0:03:48]} 27. Ng4 {[%emt 0:01:04]} h5 {[%emt 0:00:43]} 28. Ne3 {[%emt 0:01:18]} Rdd8 {[%emt 0:00:25]} 29. h3 {[%emt 0:00:19]} Bd7 {[%emt 0:03:03]} 30. g4 {[%emt 0:00:11]} hxg4 {[%emt 0:00:31]} 31. hxg4 {[%emt 0:01:53]} Ne6 {[%emt 0:01:19]} 32. Bf1 {[%emt 0:03:02]} Rc7 {[%emt 0:01:14]} 33. Nd5 {[%emt 0:00:21]} Rc6 {[%emt 0:01:29]} 34. Nxe7 {[%emt 0:00:12]} Rb6 {[%emt 0:00:35]} 35. Nd5 {[%emt 0:00:14]} Rc6 {[%emt 0:00:15]} 36. Rd3 {[%emt 0:01:15]} Nc5 {[%emt 0:00:54]} 37. Rd1 {[%emt 0:01:07]} Be6 {[%emt 0:00:53]} 38. Ne3 {[%emt 0:01:04]} Rc7 {[%emt 0:00:47]} 39. Rdb1 {[%emt 0:00:42]} Rc6 {[%emt 0:00:43]} 40. Ra1 {[%emt 0:01:08]} a5 {[%emt 0:00:28]} 41. Nc2 {[%emt 0:30:40]} Rb6 {[%emt 0:30:35]} 42. Rab1 {[%emt 0:00:43]} Bd7 {[%emt 0:00:36]} 43. Ne3 {[%emt 0:01:12]} Be6 {[%emt 0:00:10]} 44. Kg2 {[%emt 0:00:51]} Kh6 {[%emt 0:00:42]} 45. Kg3 {[%emt 0:00:16]} Re8 {[%emt 0:00:36]} 46. Rh2+ {[%emt 0:00:19]} Kg7 {[%emt 0:00:05]} 47. Rhb2 {[%emt 0:00:10]} Kh6 {[%emt 0:00:39]} 48. Nc2 {[%emt 0:00:19]} Rd8 {[%emt 0:00:34]} 49. Na1 {[%emt 0:00:26]} Kg7 {[%emt 0:00:42]} 50. Kf4 {[%emt 0:01:44]} Kf6 {[%emt 0:00:18]} 51. g5+ {[%emt 0:00:45]} Kg7 {[%emt 0:00:07]} 52. Ke3 {[%emt 0:00:20]} Kf8 {[%emt 0:00:53]} 53. Nc2 {[%emt 0:01:06]} Ke7 {[%emt 0:00:20]} 54. Nd4 {[%emt 0:00:20]} Rc8 {[%emt 0:00:35]} 55. Kd2 {[%emt 0:01:20]} Na6 {[%emt 0:00:23]} 56. Kc3 {[%emt 0:00:35]} Nb4 {[%emt 0:00:36]} 57. Rd1 {[%emt 0:01:05]} Rd8 {[%emt 0:00:24]} 58. Rbd2 {[%emt 0:01:09]} Na6 {[%emt 0:00:41]} 59. Nc2 {[%emt 0:05:28]} Rd7 {[%emt 0:00:49]} 60. Rb1 {[%emt 0:00:41]} Nb4 {[%emt 0:00:28]} 61. Rh2 {[%emt 0:01:23]} Rd8 {[%emt 0:00:13]} 62. f4 {[%emt 0:00:45]} Rg8 {[%emt 0:00:40]} 63. Re1 {[%emt 0:00:34]} Kd7 {[%emt 0:00:18]} 64. Rd2 {[%emt 0:00:17]} Rc8 {[%emt 0:00:34]} 65. Na3 {[%emt 0:01:25]} Na6 {[%emt 0:00:36]} 66. Rb1 {[%emt 0:00:29]} Nb4 {[%emt 0:00:24]} 67. Nb5 {[%emt 0:02:50]} Rcc6 {[%emt 0:00:48]} 68. Rbd1 {[%emt 0:01:14]} Ke7 {[%emt 0:00:21]} 69. Na7 {[%emt 0:00:55]} Rc7 {[%emt 0:00:19]} 70. Nb5 {[%emt 0:00:27]} Rcc6 {[%emt 0:00:12]} 71. Nd4 {[%emt 0:00:23]} Rc8 {[%emt 0:00:19]} 72. f5 {[%emt 0:01:28]} Bd7 {[%emt 0:00:51]} 73. Bh3 {[%emt 0:00:53]} Rd8 {[%emt 0:00:47]} 74. Nc2 {[%emt 0:01:58]} Bc8 {[%emt 0:00:34]} 75. f6+ {[%emt 0:00:26]} Ke8 {[%emt 0:00:23]} 76. Bxc8 {[%emt 0:00:11]} Rxc8 {[%emt 0:00:06]} 77. Rxd6 {[%emt 0:00:17]} Rxd6 {[%emt 0:00:23]} 78. Rxd6 {[%emt 0:00:06]} Nc6 {[%emt 0:00:17]} 79. Rd5 {[%emt 0:01:07]} Ra8 {[%emt 0:00:26]} 80. Rb5 {[%emt 0:00:43]} Ra7 {[%emt 0:00:19]} 81. Ne3 {[%emt 0:01:30]} Kd7 {[%emt 0:01:32]} 82. Rd5+ {[%emt 0:00:33]} Ke8 {[%emt 0:00:17]} 83. Rd1 {[%emt 0:00:19]} Ra8 {[%emt 0:00:26]} 84. Nd5 {[%emt 0:00:10]} Rc8 {[%emt 0:00:52]} 85. Rh1 {[%emt 0:00:27]} Rd8 {[%emt 0:00:33]} 86. Rh8+ {[%emt 0:00:36]} Kd7 {[%emt 0:00:11]} 87. Rh7 {[%emt 0:01:09]} Rf8 {[%emt 0:00:16]} 88. b4 {[%emt 0:01:16]} axb4+ {[%emt 0:00:18]} 89. Nxb4 {[%emt 0:00:09]} Kd6 {[%emt 0:00:24]} 90. Rh1 {[%emt 0:00:22]} Kc7 {[%emt 0:00:18]} 91. Re1 {[%emt 0:00:36]} Re8 {[%emt 0:00:10]} 92. Nd5+ {[%emt 0:00:19]} Kd7 {[%emt 0:00:17]} 93. Kd3 {[%emt 0:00:50]} Ne5+ {[%emt 0:00:14]} 94. Kc3 {[%emt 0:01:42]} Nc6 {[%emt 0:00:13]} 95. Rb1 {[%emt 0:00:39]} Kc8 {[%emt 0:00:38]} 96. Re1 {[%emt 0:01:20]} Kd7 {[%emt 0:00:25]} 97. Nb6+ {[%emt 0:00:17]} Kc7 {[%emt 0:00:16]} 98. c5 {[%emt 0:00:23]} Re5 {[%emt 0:00:52]} 99. Nd5+ {[%emt 0:00:14]} Kd7 {[%emt 0:00:25]} 100. Rd1 {[%emt 0:00:45]} Kc8 {[%emt 0:00:35]} 101. Nb6+ {[%emt 0:00:15]} Kc7 {[%emt 0:01:12]} 102. Rd7+ {[%emt 0:00:13]} Kb8 {[%emt 0:00:16]} 103. Rxf7 {[%emt 0:00:22]} Rxe4 {[%emt 0:01:29]} 104. Rf8+ {[%emt 0:00:19]} Kc7 {[%emt 0:00:58]} 105. Rc8# {[%emt 0:00:29]} 1-0

[Event "CZE-ch Youth G10-G12-G14 2022"]
[Site "Luhacovice"]
[Date "2022.03.14"]
[Round "3.21"]
[White "Hladka, Leontyna"]
[Black "Lukaskova Ellen"]
[Result "1-0"]
[ECO "C65"]
[WhiteElo "1134"]
[BlackElo "1058"]
[Annotator "NA"]
[PlyCount "97"]
[EventDate "2022.03.12"]
[EventType "swiss"]
[EventCountry "CZE"]
[SourceTitle "playchess.com"]
[Source "ChessBase"]
[SourceQuality "1"]
[TimeControl "40/5400+30:1800+30"]

1. e4 {[%emt 0:00:04]} e5 {[%emt 0:00:05]} 2. Nf3 {[%emt 0:00:07]} Nc6 {[%emt 0:00:16]} 3. Bb5 {[%emt 0:00:09]} Nf6 {[%emt 0:00:31]} 4. d3 {[%emt 0:00:22]} Bc5 {[%emt 0:01:03]} 5. O-O {[%emt 0:00:48]} O-O {[%emt 0:01:02]} 6. Bxc6 {[%emt 0:00:37]} dxc6 {[%emt 0:01:30]} 7. Nxe5 {[%emt 0:00:37]} Bd6 {[%emt 0:02:57]} 8. Nc4 {[%emt 0:02:56]} Bg4 {[%emt 0:03:34]} 9. f3 {[%emt 0:07:53]} Be6 {[%emt 0:03:50]} 10. Nba3 {[%emt 0:05:11]} Bxc4 {[%emt 0:04:34]} 11. Nxc4 {[%emt 0:00:31]} Bc5+ {[%emt 0:01:56]} 12. Kh1 {[%emt 0:01:20]} Nh5 {[%emt 0:09:57]} 13. Qd2 {[%emt 0:05:47]} Qh4 {[%emt 0:05:11]} 14. Qg5 {[%emt 0:01:41]} Qxg5 {[%emt 0:02:22]} 15. Bxg5 {[%emt 0:00:11]} Bb4 {[%emt 0:14:55]} 16. c3 {[%emt 0:25:01]} f6 {[%emt 0:00:30]} 17. Bd2 {[%emt 0:00:30]} Bc5 {[%emt 0:00:30]} 18. f4 {[%emt 0:00:30]} Bd6 {[%emt 0:00:30]} 19. g4 {[%emt 0:00:30]} Nxf4 {[%emt 0:00:30]} 20. Bxf4 {[%emt 0:00:30]} Bxf4 {[%emt 0:00:30]} 21. Rxf4 {[%emt 0:00:30]} Rad8 {[%emt 0:00:30]} 22. Rd1 {[%emt 0:00:30]} c5 {[%emt 0:00:30]} 23. Kg2 {[%emt 0:00:30]} b5 {[%emt 0:00:30]} 24. Ne3 {[%emt 0:00:30]} c4 {[%emt 0:00:30]} 25. d4 {[%emt 0:00:30]} c5 {[%emt 0:00:30]} 26. dxc5 {[%emt 0:00:30]} Rxd1 {[%emt 0:00:30]} 27. Nxd1 {[%emt 0:00:30]} Kf7 {[%emt 0:00:30]} 28. Rf5 {[%emt 0:00:30]} Rd8 {[%emt 0:00:30]} 29. Rd5 {[%emt 0:00:30]} Re8 {[%emt 0:00:30]} 30. Kf3 {[%emt 0:00:30]} Re5 {[%emt 0:00:30]} 31. c6 {[%emt 0:00:30]} Rxd5 {[%emt 0:00:30]} 32. exd5 {[%emt 0:00:30]} Ke7 {[%emt 0:00:30]} 33. Ne3 {[%emt 0:00:30]} Kd8 {[%emt 0:00:30]} 34. d6 {[%emt 0:00:30]} a5 {[%emt 0:00:30]} 35. c7+ {[%emt 0:00:30]} Kc8 {[%emt 0:00:48]} 36. Ke4 {[%emt 0:01:04]} g6 {[%emt 0:01:17]} 37. Kd5 {[%emt 0:00:24]} Kd7 {[%emt 0:00:08]} 38. Kc5 {[%emt 0:00:29]} b4 {[%emt 0:00:12]} 39. cxb4 {[%emt 0:02:00]} axb4 {[%emt 0:00:14]} 40. Kxb4 {[%emt 0:00:36]} f5 {[%emt 0:00:42]} 41. gxf5 {[%emt 0:30:17]} gxf5 {[%emt 0:30:13]} 42. Nxf5 {[%emt 0:00:19]} c3 {[%emt 0:00:16]} 43. bxc3 {[%emt 0:00:13]} h5 {[%emt 0:00:10]} 44. Ne7 {[%emt 0:00:12]} Kxd6 {[%emt 0:00:23]} 45. c8=Q {[%emt 0:00:18]} h4 {[%emt 0:00:12]} 46. Qc6+ {[%emt 0:00:19]} Ke5 {[%emt 0:00:11]} 47. Qc4 {[%emt 0:01:47]} Kd6 {[%emt 0:00:29]} 48. Qc5+ {[%emt 0:00:27]} Ke6 {[%emt 0:00:31]} 49. a4 {[%emt 0:01:09]} 1-0

[Event "CZE-ch Youth G10-G12-G14 2022"]
[Site "Luhacovice"]
[Date "2022.03.14"]
[Round "3.22"]
[White "Pruskova, Justyna"]
[Black "Spetlova Stella"]
[Result "1-0"]
[ECO "A02"]
[WhiteElo "1003"]
[BlackElo "1000"]
[Annotator "NA"]
[PlyCount "22"]
[EventDate "2022.03.12"]
[EventType "swiss"]
[EventCountry "CZE"]
[SourceTitle "playchess.com"]
[Source "ChessBase"]
[SourceQuality "1"]
[TimeControl "40/5400+30:1800+30"]

1. f4 {[%emt 0:00:00]} d6 {[%emt 0:01:36]} 2. g3 {[%emt 0:00:00]} e6 {[%emt 0:05:28]} 3. e4 {[%emt 0:00:30]} e5 {[%emt 0:00:30]} 4. Nc3 {[%emt 0:00:30]} Bd7 {[%emt 0:06:00]} 5. d3 {[%emt 0:01:34]} Nf6 {[%emt 0:03:10]} 6. Bg2 {[%emt 0:01:56]} Be7 {[%emt 0:02:28]} 7. Nf3 {[%emt 0:01:04]} O-O {[%emt 0:02:41]} 8. Bd2 {[%emt 0:01:34]} Bg4 {[%emt 0:03:28]} 9. O-O {[%emt 0:00:22]} Bd7 {[%emt 0:01:43]} 10. h3 {[%emt 0:01:28]} c5 {[%emt 0:06:24]} 11. f5 {[%emt 0:01:33]} Nd5 {[%emt 0:00:57]} 1-0

[Event "CZE-ch Youth G10-G12-G14 2022"]
[Site "Luhacovice"]
[Date "2022.03.14"]
[Round "3.23"]
[White "Martinkovicova Nela"]
[Black "Sochorova Valentyna"]
[Result "0-1"]
[ECO "D00"]
[WhiteElo "1032"]
[BlackElo "1201"]
[Annotator "NA"]
[PlyCount "108"]
[EventDate "2022.03.12"]
[EventType "swiss"]
[EventCountry "CZE"]
[SourceTitle "playchess.com"]
[Source "ChessBase"]
[SourceQuality "1"]
[TimeControl "40/5400+30:1800+30"]

1. d4 {[%emt 0:00:05]} d5 {[%emt 0:00:14]} 2. Nc3 {[%emt 0:00:46]} Nf6 {[%emt 0:00:35]} 3. Bf4 {[%emt 0:00:20]} a6 {[%emt 0:02:00]} 4. Nf3 {[%emt 0:00:55]} Nc6 {[%emt 0:00:45]} 5. e3 {[%emt 0:01:20]} Bg4 {[%emt 0:00:32]} 6. Bd3 {[%emt 0:01:21]} e6 {[%emt 0:03:20]} 7. O-O {[%emt 0:00:56]} Bd6 {[%emt 0:04:17]} 8. Bg3 {[%emt 0:03:31]} Bxg3 {[%emt 0:01:30]} 9. fxg3 {[%emt 0:00:14]} e5 {[%emt 0:04:20]} 10. Be2 {[%emt 0:03:45]} e4 {[%emt 0:05:03]} 11. Ne5 {[%emt 0:02:24]} Bxe2 {[%emt 0:00:38]} 12. Qxe2 {[%emt 0:00:24]} O-O {[%emt 0:09:20]} 13. Ng4 {[%emt 0:05:40]} Nxg4 {[%emt 0:07:16]} 14. Qxg4 {[%emt 0:00:18]} Ne7 {[%emt 0:01:44]} 15. Rad1 {[%emt 0:01:23]} Qc8 {[%emt 0:03:15]} 16. Qh4 {[%emt 0:00:52]} Ng6 {[%emt 0:03:03]} 17. Qg5 {[%emt 0:01:37]} c6 {[%emt 0:02:31]} 18. Qf5 {[%emt 0:03:31]} Qxf5 {[%emt 0:01:27]} 19. Rxf5 {[%emt 0:00:14]} Rac8 {[%emt 0:02:23]} 20. Na4 {[%emt 0:01:06]} Ne7 {[%emt 0:01:13]} 21. Rf2 {[%emt 0:00:54]} Rc7 {[%emt 0:02:10]} 22. Nc5 {[%emt 0:02:27]} Ng6 {[%emt 0:05:56]} 23. b3 {[%emt 0:02:24]} a5 {[%emt 0:03:57]} 24. c4 {[%emt 0:00:57]} b6 {[%emt 0:02:29]} 25. Na4 {[%emt 0:03:40]} b5 {[%emt 0:03:51]} 26. cxb5 {[%emt 0:01:10]} cxb5 {[%emt 0:00:41]} 27. Nb2 {[%emt 0:00:45]} Rc3 {[%emt 0:03:46]} 28. Re2 {[%emt 0:01:16]} Rfc8 {[%emt 0:02:54]} 29. Ree1 {[%emt 0:00:42]} Rc2 {[%emt 0:01:34]} 30. Rb1 {[%emt 0:00:56]} b4 {[%emt 0:00:53]} 31. a4 {[%emt 0:03:08]} bxa3 {[%emt 0:01:49]} 32. Na4 {[%emt 0:01:42]} a2 {[%emt 0:01:22]} 33. Ra1 {[%emt 0:00:30]} Ne7 {[%emt 0:00:56]} 34. Kf1 {[%emt 0:00:46]} Rb8 {[%emt 0:01:12]} 35. Rec1 {[%emt 0:01:06]} Rxc1+ {[%emt 0:01:07]} 36. Rxc1 {[%emt 0:00:15]} Rxb3 {[%emt 0:00:25]} 37. Re1 {[%emt 0:02:37]} Ra3 {[%emt 0:01:00]} 38. Ra1 {[%emt 0:01:26]} Rxa4 {[%emt 0:00:18]} 39. Ke2 {[%emt 0:00:35]} Nc6 {[%emt 0:00:40]} 40. Kf2 {[%emt 0:00:45]} Nb4 {[%emt 0:00:12]} 41. Ke2 {[%emt 0:30:56]} Nc2 {[%emt 0:30:36]} 42. Rc1 {[%emt 0:00:26]} a1=Q {[%emt 0:00:38]} 43. Rxa1 {[%emt 0:01:07]} Rxa1 {[%emt 0:00:30]} 44. Kd2 {[%emt 0:00:18]} Nxd4 {[%emt 0:00:47]} 45. exd4 {[%emt 0:00:11]} a4 {[%emt 0:00:11]} 46. Kc2 {[%emt 0:00:09]} a3 {[%emt 0:00:18]} 47. g4 {[%emt 0:00:16]} e3 {[%emt 0:00:11]} 48. g5 {[%emt 0:00:17]} e2 {[%emt 0:00:12]} 49. g6 {[%emt 0:00:12]} e1=Q {[%emt 0:00:11]} 50. gxh7+ {[%emt 0:00:14]} Kxh7 {[%emt 0:00:06]} 51. g4 {[%emt 0:00:13]} Qe3 {[%emt 0:00:28]} 52. g5 {[%emt 0:00:27]} Ra2+ {[%emt 0:00:09]} 53. Kb1 {[%emt 0:00:17]} Qb3+ {[%emt 0:00:10]} 54. Kc1 {[%emt 0:00:13]} Qc2# {[%emt 0:00:09]} 0-1